[Event "Reykjavik Open 2025"]
[Site "Reykjavik"]
[Date "2025.04.14"]
[Round "8.28"]
[White "Gislason, Gudmundur"]
[Black "Larkin, Vladyslav"]
[Result "1/2-1/2"]
[Annotator "RC"]
[ECO "D05"]
[WhiteElo "2216"]
[BlackElo "2449"]
[PlyCount "101"]
[EventDate "2025.04.09"]
[EventType "swiss"]
[EventCountry "ISL"]
[SourceTitle "playchess.com"]
[Source "ChessBase"]
[SourceQuality "1"]
[TimeControl "40/5400+30:1800+30"]

1. d4 {[%emt 0:00:11]} Nf6 {[%emt 0:04:04]} 2. Nf3 {[%emt 0:00:15]} e6 {[%emt 0:00:10]} 3. e3 {[%emt 0:00:39]} b6 {[%emt 0:00:47]} 4. Bd3 {[%emt 0:01:41]} Bb7 {[%emt 0:00:05]} 5. Qe2 {[%emt 0:00:27]} c5 {[%emt 0:04:21]} 6. c3 {[%emt 0:00:09]} Nc6 {[%emt 0:01:52]} 7. O-O {[%emt 0:02:38]} Be7 {[%emt 0:00:53]} 8. a3 {[%emt 0:08:26]} d5 {[%emt 0:04:34]} 9. b4 {[%emt 0:02:48]} Qc7 {[%emt 0:01:56]} 10. Nbd2 {[%emt 0:13:42]} O-O {[%emt 0:09:07]} 11. b5 {[%emt 0:07:50]} Na5 {[%emt 0:00:19]} 12. Bb2 {[%emt 0:09:57]} Ne4 {[%emt 0:13:24]} 13. c4 {[%emt 0:05:54]} Bf6 {[%emt 0:00:06]} 14. Bxe4 {[%emt 0:04:10]} dxe4 {[%emt 0:00:06]} 15. Ne5 {[%emt 0:00:25]} Bxe5 {[%emt 0:01:12]} 16. dxe5 {[%emt 0:00:10]} Rfd8 {[%emt 0:00:11]} 17. Rad1 {[%emt 0:08:40]} Rd3 {[%emt 0:03:17]} 18. f3 {[%emt 0:08:05]} Rad8 {[%emt 0:00:20]} 19. fxe4 {[%emt 0:00:29]} R8d7 {[%emt 0:07:56]} 20. Bd4 {[%emt 0:02:23]} Rxa3 {[%emt 0:00:29]} 21. Nb1 {[%emt 0:01:08]} Rb3 {[%emt 0:00:12]} 22. Bc3 {[%emt 0:01:27]} h6 {[%emt 0:22:30]} 23. Qc2 {[%emt 0:02:14]} Rxd1 {[%emt 0:01:47]} 24. Rxd1 {[%emt 0:00:24]} Qe7 {[%emt 0:00:02]} 25. Bxa5 {[%emt 0:00:33]} Rxe3 {[%emt 0:00:11]} 26. Qd2 {[%emt 0:01:27]} Rxe4 {[%emt 0:01:26]} 27. Qd8+ {[%emt 0:05:06]} Qxd8 {[%emt 0:00:09]} 28. Rxd8+ {[%emt 0:00:19]} Kh7 {[%emt 0:00:01]} 29. Bc3 {[%emt 0:00:53]} Re2 {[%emt 0:05:27]} 30. Nd2 {[%emt 0:02:20]} Bxg2 {[%emt 0:01:11]} 31. Rd3 {[%emt 0:01:04]} g5 {[%emt 0:01:08]} 32. h3 {[%emt 0:01:30]} Kg6 {[%emt 0:00:30]} 33. Rg3 {[%emt 0:00:49]} Bb7 {[%emt 0:00:07]} 34. h4 {[%emt 0:00:42]} Kf5 {[%emt 0:00:19]} 35. hxg5 {[%emt 0:00:30]} h5 {[%emt 0:05:57]} 36. Kf1 {[%emt 0:03:02]} Rh2 {[%emt 0:00:03]} 37. Kg1 {[%emt 0:02:43]} Rh1+ {[%emt 0:01:11]} 38. Kf2 {[%emt 0:00:27]} h4 {[%emt 0:00:02]} 39. Rg1 {[%emt 0:01:28]} Rh2+ {[%emt 0:02:07]} 40. Ke1 {[%emt 0:01:24]} h3 {[%emt 0:01:55]} 41. Rf1+ {[%emt 0:30:58]} Kg6 {[%emt 0:21:03]} 42. Rf6+ {[%emt 0:00:00]} Kg7 {[%emt 0:03:22]} 43. Rh6 {[%emt 0:00:00]} Rh1+ {[%emt 0:00:31]} 44. Ke2 {[%emt 0:00:00]} h2 {[%emt 0:01:51]} 45. Kd3 {[%emt 0:00:00]} Ba8 {[%emt 0:10:12]} 46. Kc2 {[%emt 0:00:00]} Bb7 {[%emt 0:00:02]} 47. Kb2 {[%emt 0:00:00]} Ba8 {[%emt 0:00:12]} 48. Kc2 {[%emt 0:00:00]} Bb7 {[%emt 0:00:03]} 49. Bb2 {[%emt 0:00:00]} Ba8 {[%emt 0:00:31]} 50. Kd3 {[%emt 0:00:00]} Bb7 {[%emt 0:00:46]} 51. Kc2 {[%emt 0:00:00]} 1/2-1/2

[Event "Reykjavik Open 2025"]
[Site "Reykjavik"]
[Date "2025.04.14"]
[Round "8.29"]
[White "Savidge, Daniel"]
[Black "Gunnarsson, Jon Viktor"]
[Result "0-1"]
[Annotator "RC"]
[ECO "A01"]
[WhiteElo "2180"]
[BlackElo "2439"]
[PlyCount "80"]
[EventDate "2025.04.09"]
[EventType "swiss"]
[EventCountry "ISL"]
[SourceTitle "playchess.com"]
[Source "ChessBase"]
[SourceQuality "1"]
[TimeControl "40/5400+30:1800+30"]

1. b3 {[%emt 0:00:07]} Nf6 {[%emt 0:00:21]} 2. Bb2 {[%emt 0:00:04]} g6 {[%emt 0:00:38]} 3. d4 {[%emt 0:00:30]} Bg7 {[%emt 0:01:35]} 4. Nc3 {[%emt 0:00:07]} d5 {[%emt 0:01:39]} 5. Qd2 {[%emt 0:01:01]} c5 {[%emt 0:05:44]} 6. e3 {[%emt 0:00:29]} Nc6 {[%emt 0:02:14]} 7. O-O-O {[%emt 0:00:25]} cxd4 {[%emt 0:06:31]} 8. exd4 {[%emt 0:00:11]} Bf5 {[%emt 0:00:06]} 9. Bb5 {[%emt 0:00:10]} O-O {[%emt 0:00:55]} 10. Bxc6 {[%emt 0:00:24]} bxc6 {[%emt 0:00:04]} 11. f3 {[%emt 0:03:50]} Nd7 {[%emt 0:06:43]} 12. g4 {[%emt 0:05:32]} Be6 {[%emt 0:00:08]} 13. Nge2 {[%emt 0:01:23]} f5 {[%emt 0:10:00]} 14. g5 {[%emt 0:09:04]} f4 {[%emt 0:00:43]} 15. Nxf4 {[%emt 0:00:09]} Bf5 {[%emt 0:00:05]} 16. Rhe1 {[%emt 0:03:05]} e5 {[%emt 0:05:01]} 17. dxe5 {[%emt 0:01:31]} Qxg5 {[%emt 0:03:13]} 18. h4 {[%emt 0:04:37]} Qh6 {[%emt 0:04:17]} 19. e6 {[%emt 0:01:52]} Ne5 {[%emt 0:02:48]} 20. e7 {[%emt 0:02:19]} Rfe8 {[%emt 0:00:45]} 21. Rxe5 {[%emt 0:09:11]} Bxe5 {[%emt 0:00:06]} 22. Ncxd5 {[%emt 0:00:05]} Bxb2+ {[%emt 0:01:47]} 23. Kxb2 {[%emt 0:00:11]} Qg7+ {[%emt 0:00:43]} 24. c3 {[%emt 0:07:15]} cxd5 {[%emt 0:00:48]} 25. Nxd5 {[%emt 0:00:44]} Rac8 {[%emt 0:04:56]} 26. Qg5 {[%emt 0:01:20]} Rc6 {[%emt 0:04:33]} 27. h5 {[%emt 0:01:45]} Qe5 {[%emt 0:09:17]} 28. h6 {[%emt 0:02:24]} Qe2+ {[%emt 0:03:18]} 29. Rd2 {[%emt 0:00:05]} Qxf3 {[%emt 0:00:40]} 30. c4 {[%emt 0:01:32]} Kf7 {[%emt 0:02:10]} 31. Qg1 {[%emt 0:01:52]} Qe4 {[%emt 0:05:02]} 32. a4 {[%emt 0:07:18]} Qe5+ {[%emt 0:04:24]} 33. Ka2 {[%emt 0:00:16]} a5 {[%emt 0:00:42]} 34. Qa7 {[%emt 0:01:09]} Re6 {[%emt 0:03:28]} 35. Qg1 {[%emt 0:04:31]} Qe4 {[%emt 0:04:13]} 36. Qc5 {[%emt 0:01:35]} Qb1+ {[%emt 0:00:55]} 37. Ka3 {[%emt 0:00:02]} Qc1+ {[%emt 0:00:25]} 38. Rb2 {[%emt 0:00:01]} Re2 {[%emt 0:00:18]} 39. Qd4 {[%emt 0:00:09]} Qa1+ {[%emt 0:00:06]} 40. Ra2 {[%emt 0:00:02]} Rxa2# {[%emt 0:00:09]} 0-1

[Event "Reykjavik Open 2025"]
[Site "Reykjavik"]
[Date "2025.04.14"]
[Round "8.30"]
[White "Cramling Bellon, Anna"]
[Black "Fernandez, Kenneth"]
[Result "1-0"]
[Annotator "RC"]
[ECO "D11"]
[WhiteElo "2046"]
[BlackElo "1842"]
[PlyCount "92"]
[EventDate "2025.04.09"]
[EventType "swiss"]
[EventCountry "ISL"]
[SourceTitle "playchess.com"]
[Source "ChessBase"]
[SourceQuality "1"]
[TimeControl "40/5400+30:1800+30"]

1. d4 {[%emt 0:00:05]} d5 {[%emt 0:00:27]} 2. c4 {[%emt 0:00:05]} c6 {[%emt 0:00:33]} 3. Nf3 {[%emt 0:00:11]} Nf6 {[%emt 0:00:45]} 4. e3 {[%emt 0:00:19]} Bg4 {[%emt 0:01:20]} 5. Nc3 {[%emt 0:00:55]} e6 {[%emt 0:01:19]} 6. h3 {[%emt 0:01:30]} Bh5 {[%emt 0:06:16]} 7. Be2 {[%emt 0:01:12]} Bxf3 {[%emt 0:00:21]} 8. Bxf3 {[%emt 0:00:13]} g6 {[%emt 0:08:03]} 9. b3 {[%emt 0:05:12]} Qa5 {[%emt 0:02:41]} 10. Bd2 {[%emt 0:00:52]} Qd8 {[%emt 0:12:59]} 11. O-O {[%emt 0:15:17]} Bg7 {[%emt 0:00:08]} 12. Na4 {[%emt 0:02:10]} O-O {[%emt 0:02:38]} 13. Rc1 {[%emt 0:03:38]} Nbd7 {[%emt 0:00:30]} 14. cxd5 {[%emt 0:00:14]} exd5 {[%emt 0:00:32]} 15. b4 {[%emt 0:05:06]} h5 {[%emt 0:09:02]} 16. b5 {[%emt 0:10:16]} cxb5 {[%emt 0:06:22]} 17. Nc3 {[%emt 0:00:05]} Nb6 {[%emt 0:00:32]} 18. Nxb5 {[%emt 0:00:08]} Qd7 {[%emt 0:00:28]} 19. Qb3 {[%emt 0:26:18]} Nc4 {[%emt 0:05:44]} 20. Bb4 {[%emt 0:00:26]} Rfc8 {[%emt 0:03:21]} 21. a4 {[%emt 0:00:29]} a6 {[%emt 0:07:51]} 22. Na3 {[%emt 0:00:11]} b5 {[%emt 0:07:55]} 23. a5 {[%emt 0:10:34]} Rab8 {[%emt 0:02:00]} 24. Rfd1 {[%emt 0:03:23]} Qe6 {[%emt 0:02:28]} 25. Nc2 {[%emt 0:01:05]} Rc7 {[%emt 0:05:01]} 26. Ne1 {[%emt 0:00:14]} Rbc8 {[%emt 0:00:36]} 27. Nd3 {[%emt 0:01:20]} Nd7 {[%emt 0:00:25]} 28. Nf4 {[%emt 0:02:04]} Qe8 {[%emt 0:08:49]} 29. Nxd5 {[%emt 0:00:34]} Nf6 {[%emt 0:00:55]} 30. Nxc7 {[%emt 0:00:20]} Rxc7 {[%emt 0:00:02]} 31. Be2 {[%emt 0:01:54]} Qc8 {[%emt 0:00:53]} 32. Qa2 {[%emt 0:05:32]} Nd5 {[%emt 0:01:04]} 33. Bc5 {[%emt 0:00:24]} Rxc5 {[%emt 0:01:08]} 34. dxc5 {[%emt 0:00:04]} Nc3 {[%emt 0:00:38]} 35. Rxc3 {[%emt 0:00:09]} Bxc3 {[%emt 0:00:00]} 36. Bxc4 {[%emt 0:00:14]} bxc4 {[%emt 0:00:10]} 37. Qxc4 {[%emt 0:00:16]} Bxa5 {[%emt 0:00:09]} 38. Rd6 {[%emt 0:00:29]} Bc7 {[%emt 0:00:35]} 39. Rxg6+ {[%emt 0:00:17]} Kf8 {[%emt 0:00:36]} 40. Rxa6 {[%emt 0:00:52]} Qf5 {[%emt 0:00:03]} 41. f4 {[%emt 0:33:45]} h4 {[%emt 0:31:03]} 42. Ra8+ {[%emt 0:00:23]} Ke7 {[%emt 0:02:49]} 43. Qb5 {[%emt 0:01:26]} Qd5 {[%emt 0:00:00]} 44. Re8+ {[%emt 0:00:00]} Kf6 {[%emt 0:00:00]} 45. Qb2+ {[%emt 0:00:00]} Kg6 {[%emt 0:00:00]} 46. Rg8+ {[%emt 0:00:00]} Kf5 {[%emt 0:00:00]} 1-0

[Event "Reykjavik Open 2025"]
[Site "Reykjavik"]
[Date "2025.04.14"]
[Round "8.31"]
[White "Williams, Simon K"]
[Black "Roubert, Emile"]
[Result "1-0"]
[Annotator "RC"]
[ECO "D05"]
[WhiteElo "2451"]
[BlackElo "2050"]
[PlyCount "63"]
[EventDate "2025.04.09"]
[EventType "swiss"]
[EventCountry "ISL"]
[SourceTitle "playchess.com"]
[Source "ChessBase"]
[SourceQuality "1"]
[TimeControl "40/5400+30:1800+30"]

1. d4 {[%emt 0:00:30]} d5 {[%emt 0:00:30]} 2. Nf3 {[%emt 0:00:30]} e6 {[%emt 0:00:30]} 3. e3 {[%emt 0:00:30]} Nf6 {[%emt 0:00:30]} 4. Bd3 {[%emt 0:00:30]} b6 {[%emt 0:00:27]} 5. O-O {[%emt 0:01:46]} Bd6 {[%emt 0:01:10]} 6. Ne5 {[%emt 0:04:21]} O-O {[%emt 0:04:09]} 7. Nd2 {[%emt 0:04:45]} Bb7 {[%emt 0:03:21]} 8. f4 {[%emt 0:09:44]} Ne4 {[%emt 0:04:42]} 9. Qf3 {[%emt 0:05:53]} f5 {[%emt 0:06:25]} 10. Kh1 {[%emt 0:01:59]} Nd7 {[%emt 0:02:29]} 11. Qh3 {[%emt 0:02:17]} Nxd2 {[%emt 0:10:01]} 12. Bxd2 {[%emt 0:00:06]} Nxe5 {[%emt 0:00:17]} 13. fxe5 {[%emt 0:00:14]} Be7 {[%emt 0:00:15]} 14. g4 {[%emt 0:00:14]} g6 {[%emt 0:03:37]} 15. Rf3 {[%emt 0:11:51]} Rf7 {[%emt 0:17:13]} 16. Rg1 {[%emt 0:05:28]} Rg7 {[%emt 0:14:21]} 17. gxf5 {[%emt 0:13:09]} exf5 {[%emt 0:01:42]} 18. Be1 {[%emt 0:04:50]} Bc8 {[%emt 0:04:17]} 19. Qh6 {[%emt 0:01:21]} Bf8 {[%emt 0:02:53]} 20. Bh4 {[%emt 0:02:19]} Be7 {[%emt 0:00:32]} 21. Bg5 {[%emt 0:06:41]} Be6 {[%emt 0:07:29]} 22. h4 {[%emt 0:00:24]} Qf8 {[%emt 0:03:50]} 23. Bxe7 {[%emt 0:01:11]} Qxe7 {[%emt 0:01:58]} 24. Rfg3 {[%emt 0:00:48]} Rf8 {[%emt 0:01:03]} 25. Rg5 {[%emt 0:02:32]} Bd7 {[%emt 0:03:42]} 26. R5g2 {[%emt 0:05:46]} Be8 {[%emt 0:02:52]} 27. c3 {[%emt 0:00:36]} Rff7 {[%emt 0:01:21]} 28. Qf4 {[%emt 0:06:41]} Bd7 {[%emt 0:01:00]} 29. Be2 {[%emt 0:01:05]} Kh8 {[%emt 0:00:32]} 30. Bf3 {[%emt 0:00:11]} Be6 {[%emt 0:00:05]} 31. Qh6 {[%emt 0:00:18]} c6 {[%emt 0:01:19]} 32. Rxg6 {[%emt 0:01:08]} 1-0

[Event "Reykjavik Open 2025"]
[Site "Reykjavik"]
[Date "2025.04.14"]
[Round "8.32"]
[White "Kavutskiy, Kostya"]
[Black "Sokolovsky, Yahli"]
[Result "1/2-1/2"]
[Annotator "TA"]
[ECO "B94"]
[WhiteElo "2351"]
[BlackElo "2546"]
[PlyCount "65"]
[EventDate "2025.04.09"]
[EventType "swiss"]
[EventCountry "ISL"]
[SourceTitle "playchess.com"]
[Source "ChessBase"]
[SourceQuality "1"]
[TimeControl "40/5400+30:1800+30"]

{[%evp 12,65,11,19,16,7,17,19,18,21,22,22,23,-2,15,6,19,13,61,68,58,71,54,63,115,101,118,111,131,115,140,100,186,66,62,50,85,55,52,56,115,72,75,41,55,30,100,79,108,75,87,0,107,0,77,0]} 1. e4 {[%emt 0:00:20]} c5 {[%emt 0:00:06]} 2. Nf3 {[%emt 0:00:17]} d6 {[%emt 0:00:07]} 3. d4 {[%emt 0:00:09]} cxd4 {[%emt 0:00:05]} 4. Nxd4 {[%emt 0:00:09]} Nf6 {[%emt 0:00:04]} 5. Nc3 {[%emt 0:00:23]} a6 {[%emt 0:00:06]} 6. Bg5 {[%emt 0:00:35]} Nbd7 {[%emt 0:00:41]} 7. Bc4 {[%emt 0:00:27]} Qb6 {[%emt 0:00:12] B94: Sicilian Najdorf: 6 Bg5 Nbd7.} 8. Bb3 {[%emt 0:00:17]} e6 {[%emt 0:00:18]} 9. f3 {[%emt 0:00:32]} Be7 {[%emt 0:00:50] The position is equal.} 10. Be3 {[%emt 0:00:40][%cal Od4f5]} Nc5 {[%emt 0:00:17]} 11. g4 {[%emt 0:00:50][%cal Bg2g4,Bg4g5][%mdl 32]} Qc7 {[%emt 0:03:25]} 12. Qd2 {[%emt 0:02:03]} b5 {[%emt 0:00:20]} 13. a3 {[%emt 0:02:35] is now debated instead of 13.g5.} Bd7 {[%emt 0:02:49]} 14. Ba2 {[%emt 0:02:48]} Rb8 {[%emt 0:10:37]} (14... O-O $11) 15. b4 $14 {[%emt 0:15:17]} Nb7 $146 {[%emt 0:01:06]} (15... Na4 16. Nxa4 bxa4 17. O-O O-O 18. c4 Rfc8 19. g5 Nh5 20. Ne2 Bc6 21. Rad1 Rd8 {0-1 Plenca,J (2445)-Novosel,L (2336) CRO-chT1A 32nd 2024 (7.5)}) 16. g5 {[%emt 0:00:47]} Nh5 {[%emt 0:00:33]} 17. Nce2 {[%emt 0:06:09]} a5 {[%emt 0:11:48]} ({Black should play} 17... d5 $14) 18. Ng3 $16 {[%emt 0:12:56]} Nxg3 {[%emt 0:00:19]} 19. hxg3 {[%emt 0:00:06]} d5 {[%emt 0:21:50]} 20. exd5 {[%emt 0:07:03]} Qxg3+ {[%emt 0:09:37]} 21. Ke2 {[%emt 0:06:40][%cal Be1e2,Be2e3,Be3d2][%mdl 32] [#] Strongly threatening Rag1.} exd5 {[%emt 0:02:00]} (21... Qg2+ $16 22. Kd3 Qxd2+ 23. Bxd2 O-O 24. dxe6 (24. bxa5 Ra8 $16) 24... Bxe6) 22. Bf4 {[%emt 0:02:31] Active counter play!} (22. bxa5 O-O 23. Rag1 Qd6 $11) (22. Bxd5 Nd6 $16) (22. Rae1 $18) 22... Qg2+ $14 {[%emt 0:00:11]} 23. Ke3 {[%emt 0:02:02] Chess con chili.} Qxd2+ {[%emt 0:00:27]} 24. Kxd2 {[%emt 0:00:02]} Bd6 {[%emt 0:05:34] White has strong rooks and is better} 25. Rae1+ {[%emt 0:03:57]} (25. Bxd6 {simplifies} Nxd6 26. Rae1+ Kf8 27. Re5) 25... Kd8 {[%emt 0:00:23]} (25... Kf8 $14 26. Bxd6+ Nxd6) 26. Bxd6 {[%emt 0:00:14]} Nxd6 {[%emt 0:00:02]} 27. Bxd5 {[%emt 0:01:11]} Rc8 {[%emt 0:04:54]} 28. c3 {[%emt 0:02:00]} Rc7 {[%emt 0:07:47]} (28... a4 $1 $11 {remains equal.}) 29. Rh4 {[%emt 0:11:18]} ({Much less strong is} 29. bxa5 Rc5 30. Bb3 Rxg5 $14) 29... Ra7 {[%emt 0:01:47]} 30. Reh1 {[%emt 0:05:40]} Re8 {[%emt 0:01:11] Counterplay White} 31. Re1 {[%emt 0:00:53] Inhibits Re5.} Rh8 $1 {[%emt 0:04:27]} 32. Reh1 {[%emt 0:01:06]} Re8 $1 {[%emt 0:01:17]} 33. Re1 {[%emt 0:05:55] Weighted Error Value: White=0.22 (precise) /Black=0.17 (very precise)   Mistake:       	White=2     	Black=5      Inaccurate:     	White=4     	Black=1      OK:         	White=13    	Black=9      Best:        	---       	Black=2      Strong:       	---       	Black=2} ({White should play} 33. Bb3 $16) 1/2-1/2

[Event "Reykjavik Open 2025"]
[Site "Reykjavik"]
[Date "2025.04.14"]
[Round "8.33"]
[White "Kunin, Vitaly"]
[Black "Petersen, Marcel"]
[Result "1/2-1/2"]
[Annotator "TA"]
[ECO "A20"]
[WhiteElo "2522"]
[BlackElo "2185"]
[PlyCount "125"]
[EventDate "2025.04.09"]
[EventType "swiss"]
[EventCountry "ISL"]
[SourceTitle "playchess.com"]
[Source "ChessBase"]
[SourceQuality "1"]
[TimeControl "40/5400+30:1800+30"]

{[%evp 14,125,8,-8,1,-1,15,-7,0,-12,41,35,36,43,39,37,37,44,50,52,45,53,68,45,39,11,49,49,41,47,54,61,64,54,52,60,66,34,37,32,54,24,59,54,50,32,25,0,59,60,56,45,45,32,42,38,39,37,43,52,72,71,71,0,71,0,71,71,71,71,71,71,71,71,71,71,71,71,71,71,71,71,71,71,71,71,71,59,71,71,71,71,84,71,278,284,198,0,0,0,19,0,0,0,0,0,0,0,0,0,0,0,0,0]} 1. g3 {[%emt 0:00:06]} e5 {[%emt 0:00:38]} 2. c4 {[%emt 0:00:13]} Nf6 {[%emt 0:00:54]} 3. Bg2 {[%emt 0:00:18]} c6 {[%emt 0:02:19]} 4. d4 {[%emt 0:00:32]} exd4 {[%emt 0:02:25]} 5. Qxd4 {[%emt 0:00:42]} d5 {[%emt 0:00:47]} 6. cxd5 {[%emt 0:05:58]} cxd5 {[%emt 0:00:26]} 7. Nf3 {[%emt 0:00:17]} Nc6 {[%emt 0:01:11]} 8. Qa4 {[%emt 0:00:51]} Bc5 {[%emt 0:03:33] A20: English Opening: 1...e5.} 9. O-O {[%emt 0:00:29]} Qb6 {[%emt 0:02:31]} 10. Ne5 {[%emt 0:05:09]} O-O {[%emt 0:02:21] A sharp opening} 11. Nd3 {[%emt 0:02:24]} Be7 {[%emt 0:02:04]} (11... Bg4 $11 12. Nxc5 Qxc5) 12. Bg5 $146 {[%emt 0:04:46]} (12. Nc3 Be6 13. Qb5 Qxb5 14. Nxb5 Rac8 15. Be3 a6 16. Nd4 Nxd4 17. Bxd4 Rc4 18. e3 {½-½ Dixon,R (1971)-Cranmer,S (2126) BCCA/P/CaA email 2015}) 12... Bf5 {[%emt 0:08:52]} 13. Nc3 {[%emt 0:09:42]} Bxd3 {[%emt 0:05:23]} 14. exd3 {[%emt 0:00:34]} Qxb2 {[%emt 0:00:14]} 15. Rfc1 {[%emt 0:03:33][%cal Oa1b1]} (15. Nxd5 $2 Nxd5 16. Bxe7 Ncxe7 $19 (16... Ndxe7 $2 17. Rab1 $19)) 15... Qb4 {[%emt 0:03:02]} 16. Rab1 $1 {[%emt 0:03:52]} Qxa4 {[%emt 0:06:58]} 17. Nxa4 {[%emt 0:00:12]} Na5 {[%emt 0:00:45]} 18. Bxf6 {[%emt 0:09:18]} Bxf6 {[%emt 0:00:09]} 19. Bxd5 {[%emt 0:00:09] Black is weak on the light squares} Rac8 {[%emt 0:09:41]} 20. Rxc8 {[%emt 0:02:31]} (20. Bxb7 $2 {loses.} Rxc1+ 21. Rxc1 Nxb7 $19) 20... Rxc8 {[%emt 0:00:05]} 21. Bxb7 {[%emt 0:00:41]} Nxb7 {[%emt 0:01:14]} 22. Rxb7 {[%emt 0:00:12][%mdl 4096] Endgame KRB-KRN. White is a pawn up.} g6 {[%emt 0:01:16]} 23. Rxa7 {[%emt 0:01:30]} Rc2 {[%emt 0:02:17]} 24. Rd7 $1 {[%emt 0:01:15] Prevents Bd4.} Rxa2 {[%emt 0:00:13]} 25. Nb6 {[%emt 0:01:39]} Kf8 {[%emt 0:05:16]} 26. Nc4 {[%emt 0:00:58]} h5 {[%emt 0:01:10]} 27. h3 {[%emt 0:03:04]} Rc2 {[%emt 0:01:35]} 28. Kg2 {[%emt 0:02:39]} Ke8 {[%emt 0:01:35]} 29. Rc7 {[%emt 0:02:12] [#]} Kf8 {[%emt 0:00:21]} 30. Rd7 {[%emt 0:01:32]} Ke8 $1 {[%emt 0:00:09]} 31. Rb7 {[%emt 0:00:32]} Kf8 {[%emt 0:01:50]} 32. Ne3 {[%emt 0:03:31]} Rd2 {[%emt 0:01:21]} 33. Rd7 {[%emt 0:00:20]} Ke8 {[%emt 0:00:35]} 34. Rd5 {[%emt 0:00:09]} Ke7 {[%emt 0:01:16]} 35. Nc4 {[%emt 0:00:24]} Rc2 {[%emt 0:04:44]} 36. Kf3 {[%emt 0:02:37]} Ke6 {[%emt 0:01:11]} 37. Rd6+ {[%emt 0:00:12]} Ke7 {[%emt 0:00:17][%cal Oc2c4]} 38. Rd5 {[%emt 0:03:25]} Ke6 {[%emt 0:00:14]} 39. Rd6+ {[%emt 0:00:54]} Ke7 {[%emt 0:00:24][%cal Oc2c4]} 40. Ra6 {[%emt 0:00:22]} Bd4 {[%emt 0:04:44]} 41. Ne3 {[%emt 0:30:14]} Rd2 {[%emt 0:31:49]} 42. Ke4 {[%emt 0:03:33]} Bxe3 {[%emt 0:00:20]} 43. Kxe3 $16 {[%emt 0:05:45] KR-KR. White is a pawn up.} Rb2 {[%emt 0:01:03]} 44. h4 {[%emt 0:00:22]} Rc2 {[%emt 0:02:30]} 45. Rb6 {[%emt 0:01:47]} Ra2 {[%emt 0:00:12]} 46. Rb3 {[%emt 0:00:45]} Ke6 {[%emt 0:00:49]} 47. Rb4 {[%emt 0:00:53]} Rc2 {[%emt 0:00:49]} 48. Re4+ {[%emt 0:00:10]} Kd6 {[%emt 0:00:50]} 49. Rc4 {[%emt 0:08:16]} Ra2 {[%emt 0:00:15]} 50. Rc1 {[%emt 0:00:22]} Rb2 {[%emt 0:01:39]} 51. Rd1 {[%emt 0:00:28]} Kd5 {[%emt 0:00:54]} 52. Rd2 {[%emt 0:00:13]} Rb7 {[%emt 0:01:42]} 53. Ra2 {[%emt 0:01:41]} Re7+ $2 {[%emt 0:00:42]} (53... Rb5 $16) 54. Kf4 $18 {[%emt 0:00:15]} Kd4 {[%emt 0:07:48] [#]} 55. Kg5 $2 {[%emt 0:00:45]} (55. Ra6 $1 $18 {[%cal Ra6d6]}) 55... Re5+ $1 $11 {[%emt 0:01:11] The position is equal.} 56. Kh6 {[%emt 0:07:58]} Rf5 {[%emt 0:01:38]} 57. Kg7 {[%emt 0:00:00] Ra7 would now be deadly.} Kxd3 {[%emt 0:00:00]} 58. Ra7 {[%emt 0:00:00]} Ke2 {[%emt 0:00:00]} 59. Rxf7 {[%emt 0:00:00]} Kxf2 {[%emt 0:00:00] ( -> ...Rxf7+)} 60. Rxf5+ {[%emt 0:00:00]} gxf5 {[%emt 0:00:00]} 61. Kg6 {[%emt 0:00:00][%csl LRf5,LRh5]} Kxg3 {[%emt 0:00:00] ( -> ...f4)} 62. Kxf5 {[%emt 0:00:00] White wants to mate with Kg5.} Kxh4 {[%emt 0:00:00] ( -> ...Kg3)} 63. Kf4 {[%emt 0:00:00] Weighted Error Value: White=0.11 (very precise) /Black=0.12 (very precise)   Loses game:     	---       	Black=1      Missed win:     	White=1     	---        Mistake:       	---       	Black=1      Inaccurate:     	White=3     	Black=2      OK:         	White=18    	Black=16     Best:        	White=5     	Black=8      Strong:       	White=2     	Black=2} 1/2-1/2

[Event "Reykjavik Open 2025"]
[Site "Reykjavik"]
[Date "2025.04.14"]
[Round "8.34"]
[White "Wedin, Svante"]
[Black "Saine, Zachary"]
[Result "0-1"]
[Annotator "NA RC"]
[ECO "C52"]
[WhiteElo "1902"]
[BlackElo "2019"]
[PlyCount "62"]
[EventDate "2025.04.09"]
[EventType "swiss"]
[EventCountry "ISL"]
[SourceTitle "playchess.com"]
[Source "ChessBase"]
[SourceQuality "1"]
[TimeControl "40/5400+30:1800+30"]

1. e4 {[%emt 0:00:03]} e5 {[%emt 0:00:06]} 2. Nf3 {[%emt 0:00:06]} Nc6 {[%emt 0:00:05]} 3. Bc4 {[%emt 0:00:07]} Bc5 {[%emt 0:00:16]} 4. b4 {[%emt 0:00:11]} Bxb4 {[%emt 0:00:18]} 5. c3 {[%emt 0:00:08]} Ba5 {[%emt 0:00:14]} 6. d4 {[%emt 0:00:10]} d6 {[%emt 0:00:25]} 7. dxe5 {[%emt 0:03:15]} dxe5 {[%emt 0:05:24]} 8. Qb3 {[%emt 0:04:55]} Qe7 {[%emt 0:06:20]} 9. O-O {[%emt 0:10:15]} Bd7 {[%emt 0:06:41]} 10. Rd1 {[%emt 0:04:57]} O-O-O {[%emt 0:12:49]} 11. Bxf7 {[%emt 0:06:39]} Bg4 {[%emt 0:17:34]} 12. Rxd8+ {[%emt 0:12:35]} Qxd8 {[%emt 0:00:09]} 13. Nbd2 {[%emt 0:05:09]} Nge7 {[%emt 0:08:01]} 14. Bb2 {[%emt 0:02:20]} Bb6 {[%emt 0:05:12]} 15. h3 {[%emt 0:03:10]} Bd7 {[%emt 0:05:44]} 16. Nc4 {[%emt 0:01:27]} Ng6 {[%emt 0:02:05]} 17. Rd1 {[%emt 0:01:38]} Qf6 {[%emt 0:01:06]} 18. Bc1 {[%emt 0:04:54]} Rf8 {[%emt 0:00:19]} 19. Nxb6+ {[%emt 0:10:49]} axb6 {[%emt 0:00:07]} 20. Bxg6 {[%emt 0:12:52]} Qxg6 {[%emt 0:00:54]} 21. Ng5 {[%emt 0:05:59]} h6 {[%emt 0:05:11]} 22. Qd5 {[%emt 0:01:35]} Qe8 {[%emt 0:02:58]} 23. Ba3 {[%emt 0:01:58]} Rf6 {[%emt 0:03:50]} 24. Nh7 {[%emt 0:01:06]} Rf7 {[%emt 0:00:50]} 25. Nf8 {[%emt 0:00:46]} Rxf8 {[%emt 0:00:51]} 26. Bxf8 {[%emt 0:00:02]} Be6 {[%emt 0:00:14]} 27. Qb5 {[%emt 0:03:42]} Qxf8 {[%emt 0:00:08]} 28. Qa4 {[%emt 0:00:26]} Kb8 {[%emt 0:00:24]} 29. Rd3 {[%emt 0:00:31]} Qc5 {[%emt 0:01:12]} 30. Rf3 {[%emt 0:00:46]} b5 {[%emt 0:00:20]} 31. Qc2 {[%emt 0:00:24]} Nd4 {[%emt 0:00:19]} 0-1